Workbook

Sheet Calculation Sheet
B1: TPS2596xx Design Calculation Tool | N1: Table - 1: Device Comparison Table
N2: Part number | O2: Overvoltage Response | P2: Response to Thermal Shutdown (TSD)
C3: Constants Cells | N3: TPS259620 | O3: OVC - 3.8 V, 5.7 V, 13.7 V (Pin Selectable) | P3: Latch-off
C4: Input/SelectCells | N4: TPS259621 | O4: OVC - 3.8 V, 5.7 V, 13.7 V (Pin Selectable) | P4: Auto-retry
C5: Calculation Cells | N5: TPS259630 | O5: Adjustable OVLO | P5: Latch-off
C6: Calculated, but can be over-ridden by user | N6: TPS259631 | O6: Adjustable OVLO | P6: Auto-retry
C7: Error Cells, Must be Fixed
B9: Parameter | C9: Description | D9: Value | E9: Units | F9: Tolerance | G9: Recommended Value
B10: Select Device | C10: Refer to Table-1 and select based on OverVoltage Clamp/Lockout and Latch-off/Auto-retry requirement | D10: TPS259631
B11: VIN (max) | C11: Maximum Operating input voltage (magnitude) | D11: 12 | E11: V
B12: VIN (max) | C12: Maximum Operating input voltage (magnitude) | D12: 12 | E12: V
B13: VIN (max) Selected | C13: Maximum Operating input voltage selected from D6 and D7 | D13: =IF(D10=N3,D11, IF(D10=N4,D11, IF(D10=N5,D12, IF(D10=N6,D12)))) -> 12 | E13: V
B14: VCLAMP | C14: Desired Over Voltage Clamp | D14: 13.58 | E14: V | F14: 0.035
B15: OVLO Set Point | C15: Desired Over Voltage Lockout Set Point | D15: 13.2 | E15: V | F15: 0.03 | I15: VOVC | J15: 3.59 | K15: 5.45 | L15: 13.58
B16: UVLO Set Point | C16: Desired Undervoltage Threshold (VIN Rising) | D16: 8 | E16: V | F16: 0.03 | I16: R_OVCSEL | J16: Short to GND | K16: 400 | L16: Open
B17: UVLO Set Point | C17: Desired Undervoltage Threshold (VIN Rising) | D17: 8 | E17: V | F17: 0.03
B18: VUVP | C18: Internal Undervoltage Protection Threshold (VIN Rising) | D18: 2.53 | E18: V | F18: 0.03
B19: Cout | C19: Load Capacitance | D19: 100 | E19: uF | F19: 0.1
B20: Rlstart | C20: Load at start-up (assumed to be resistive), Refer to Section 9.2.3.3.2 in Datasheet | D20: 20 | E20: Ohm | G20: =Vcc_max/Imax -> 12
B21: Imax | C21: Maximum continuous load current (magnitude) | D21: 1 | E21: A
B22: Ilimit | C22: Current Limit, 10.5% higher than maximum continuous load current | D22: =IF(1.105*Imax<0.125, 0.125, IF(1.105*Imax>2, 2,1.105*Imax )) -> 1.105 | E22: A
B23: TA, MAX | C23: Maximum Operating Ambient temperature | D23: 55 | E23: °C
B24: RθJA | C24: Junction-to-Ambient Thermal Resistance | E24: °C/W
B27: OVC set point calculations (TPS25962x)
B28: VOVC | C28: Over Voltage Clamp | D28: =D14 -> 13.58 | E28: V | F28: 0.035
B29: R_OVCSEL | C29: Calculated value of Resistor at OVCSEL pin | D29: =INDEX(J16:L16,MATCH(D28,J15:L15)) -> Open | E29: kOhm
B32: UVLO set point calculations (TPS25962x)
B33: UVLO Set Point | C33: Desired Undervoltage Threshold (VIN Rising) | D33: =D16 -> 8 | E33: V | F33: 0.03
B34: R1: Pullup at EN/UVLO Pin | C34: Select a value > 100K to keep I_R12 low | D34: 1000 | E34: kOhm | F34: 0.01 | L34: =IF(D34>=100,D34,IF(D34>=10,D34*10,D34*100)) -> 1000
B35: R2_cal | C35: Calculated value of Resistor at EN/UVLO pin | D35: =RpUVLO/(D33/OVref -1) -> 176.4705882 | E35: kOhm | J35: =D39 -> 7.279775281 | K35: Power Fail (VIN Falling) | L35: =IF(D35>=10000,D35/100,IF(D35>=1000,D35/10,IF(D35>=100,D35,IF(D35>=10,D35*10,D35*100)))) -> 176.4705882
B36: SELECT THE VALUE OF RESISTORS AS CLOSEST AVAILABLE VALUE OF R2 | J36: =D38 -> 7.941573034 | K36: Release UVLO (VIN Rising) | L36: =INDEX('Res EIA Tables'!E$5:E$197,2+MATCH(L35,'Res EIA Tables'!E$5:E$197)) -> 178
B37: R2 | C37: Select the closest possible value as R2_cal | D37: =G37 -> 178 | E37: kOhm | F37: =F34 -> 0.01 | G37: =L36*D35/L35 -> 178 | J37: =D28 -> 13.58 | K37: OV Clamp (VIN Rising)
B38: UV_final_rising | C38: Undervoltage Threshold (VIN Rising) | D38: =OVref*(1+RpUVLO/D37) -> 7.941573034 | E38: V | F38: =SQRT(F107^2+F34^2+F37^2) -> 0.0331662479
B39: UV_final_falling | C39: Undervoltage Threshold (VIN Falling) | D39: =UVref*(1+RpUVLO/D37) -> 7.279775281 | E39: V | F39: =SQRT(F106^2+F34^2+F37^2) -> 0.06456779383
B40: I_R12 | C40: Current in R1, R2 Branch | D40: =D13*1000/(RpUVLO+D37) -> 10.18675722 | E40: uA
B42: UVLO, OVLO set point calculations (TPS259563x) | L42: R2+R3
B43: UVLO Set Point | C43: Desired Undervoltage Threshold (VIN Rising) | D43: =D17 -> 8 | L43: =(OVref*D45)/(D43-OVref) -> 176.4705882
B44: OVLO Set Point | C44: Desired Over Voltage Lockout Set Point | D44: =D15 -> 13.2 | J44: =D52 -> 7.321719457 | K44: Power Fail (VIN Falling) | L44: R2
B45: R1: Pullup at EN/OVLO Pin | C45: Select a value > 100K to keep I_R123 low | D45: 1000 | E45: kOhm | F45: 0.01 | J45: =D51 -> 7.987330317 | K45: Release UVLO (VIN Rising) | L45: =IF(D46>=10000,D46/100,IF(D46>=1000,D46/10,IF(D46>=100,D46,IF(D46>=10,D46*10,D46*100)))) -> 695.1871658
B46: R2_cal | C46: Calculated value of Resistor at EN/OVLO pin | D46: =L43-D47 -> 69.51871658 | E46: kOhm | J46: =D54 -> 12.09794393 | K46: Release OVLO (VIN Falling) | L46: =INDEX('Res EIA Tables'!E$5:E$197,2+MATCH(L45,'Res EIA Tables'!E$5:E$197)) -> 698
B47: R3_cal | C47: Calculated value of Resistor at EN/OVLO pin | D47: =(D45+L43)*OVref/D44 -> 106.9518717 | E47: kOhm | J47: =D53 -> 13.19775701 | K47: OV Cutoff (VIN Rising) | L47: R3
B48: SELECT THE VALUE OF RESISTORS AS CLOSEST AVAILABLE VALUE OF R2 | L48: =IF(D47>=10000,D47/100,IF(D47>=1000,D47/10,IF(D47>=100,D47,IF(D47>=10,D47*10,D47*100)))) -> 106.9518717
B49: R2 | C49: Select the closest possible value as R2_cal | D49: =G49 -> 69.8 | E49: kOhm | F49: 0.01 | G49: =L46*D46/L45 -> 69.8 | L49: =INDEX('Res EIA Tables'!E$5:E$197,2+MATCH(L48,'Res EIA Tables'!E$5:E$197)) -> 107
B50: R3 | C50: Select the closest possible value as R3_cal | D50: =G50 -> 107 | E50: kOhm | F50: 0.01 | G50: =L49*D47/L48 -> 107
B51: UV_final_rising | C51: Undervoltage Threshold (VIN Rising) | D51: =OVref*(D45+D49+D50)/(D49+D50) -> 7.987330317 | E51: V | F51: =SQRT(F107^2+F45^2+F49^2+F50^2) -> 0.03464101615
B52: UV_final_falling | C52: Undervoltage Threshold (VIN Falling) | D52: =UVref*(D45+D49+D50)/(D49+D50) -> 7.321719457 | E52: V | F52: =SQRT(F106^2+F45^2+F49^2+F50^2) -> 0.0653375849
B53: OV_final_rising | C53: Overvoltage Threshold (VIN Rising) | D53: =OVref*(D45+D49+D50)/(D50) -> 13.19775701 | E53: V | F53: =SQRT(F107^2+F45^2+F49^2+F50^2) -> 0.03464101615
B54: OV_final_falling | C54: Overvoltage Threshold (VIN Falling) | D54: =UVref*(D45+D49+D50)/(D50) -> 12.09794393 | E54: V | F54: =SQRT(F106^2+F45^2+F49^2+F50^2) -> 0.0653375849
B55: I_R123 | C55: Current in R1, R2 and R3 Branch | D55: =D13*1000/(D45+D49+D50) -> 10.1971448 | E55: uA
B57: Calculations for Ilimit (resistor on ILM Pin)
B58: RILM_Cal | C58: Calculated current limit resistor | D58: =903/(Ilimit-0.0112) -> 825.56226 | E58: Ohm | J58: =Icharge -> 0.2014090909 | K58: Inrush Charging Current
B59: SELECT A ILIMIT RESISTOR WITH THE CLOSEST AVAILABLE VALUE OF Rilm_Cal | J59: =Ilimit_final -> 1.079839053 | K59: Overload Curr Limit | L59: =IF(D58>=10000,D58/100,IF(D58>=1000,D58/10,IF(D58>=100,D58,IF(D58>=10,D58*10,D58*100)))) -> 825.56226
B60: RILM | C60: Select the closest available value of RLM_cal | D60: =G60 -> 845 | E60: Ohm | F60: 0.01 | G60: =L60*D58/L59 -> 845 | L60: =INDEX('Res EIA Tables'!E$5:E$197,2+MATCH(L59,'Res EIA Tables'!E$5:E$197)) -> 845
B61: Ilimit_final | C61: Final current Limit Set Point | D61: =((903/RILM)+0.0112) -> 1.079839053 | E61: A | F61: =SQRT(0.105^2+F60^2) -> 0.1054751155
B62: Current Monitor Gain | C62: Current Monitoring Voltage at ILM pin | D62: =GainIMON*RILM/10^3 -> 553.982 | E62: mV/A | F62: =SQRT(F108^2+F60^2) -> 0.03832753579
B64: Calculations for SoftStart control (external cap on dVdt pin)
B65: Parameter | C65: Description | D65: Value | E65: Units | F65: Tolerance
B66: I_dVdt | C66: Internal current charging capacitor on dVdt | D66: 2.11 | E66: uA | F66: 0.104
B67: Gain_dVdt | C67: Internal Gain for dVdt Control | D67: 21 | E67: V/V | F67: 0.03
B68: Icharge_fastest | C68: Charging current when charging at fastest possible rate If this current is < Ilimit, no capacitor is required at dVdT pin | D68: =MIN(Cout*(Vcc_max/D69)/1000, Ilimit_final) -> 1.079839053 | E68: A
B69: Tchg_fastest | C69: when no external capacitor is connected (max. slew rate) | D69: 0.21 | E69: ms | F69: 0.15
B70: Tchg_req | C70: The charging time required | D70: 5 | E70: ms
B71: Icharge_req | C71: Charging (inrush) current desired in the system | D71: 1 | E71: A
B72: Cext_dvdt_cal1 | C72: calculated value of capacitor at dVdT pin for required Tcharge | D72: =IF(Tchg_req<D69, 0, (I_dVdt*Gain_dVdt*Tchg_req/Vcc_max)) -> 18.4625 | E72: nF
B73: Cext_dvdt_cal2 | C73: calculated value of capacitor at dVdT pin for required Icharge | D73: =(I_dVdt*Gain_dVdt*Cout*0.001/Icharge_req) -> 4.431 | E73: nF | G73: =MAX(Cdvdt_ext_cal1,Cext_dvdt_cal2) -> 18.4625
B74: SELECT A CAPACITOR WITH THE CLOSEST POSSIBLE VALUE to max(Cext_dvdt_cal1, Cext_dvdt_cal2)
B75: CdVdT_ext | C75: The external capacitor connecetd across dVdT pin (OPEN, or >=1nF) | D75: =G75 -> 22 | E75: nF | F75: 0.1 | G75: =IF(G73<1, "OPEN", IF(G73>1, INDEX('Cap Tables'!B4:B75,1+MATCH(G73,'Cap Tables'!B4:B75)), INDEX('Cap Tables'!A4:A75,1+MATCH(G73*10,'Cap Tables'!A4:A75))/10)) -> 22
B76: Icharge | C76: Charging Current as per dVdT setting | D76: =IF(Cdvdt_ext="OPEN",D68,Cout*0.000001*Gain_dVdt*I_dVdt*0.000001/(Cdvdt_ext*0.000000001)) -> 0.2014090909 | E76: A | F76: =SQRT(F78^2+F19^2) -> 0.178089865
B77: Does Device Enter Current Limit during start-up? | D77: =((Icharge+Vcc_max/Rlstart) >= Ilimit_final) -> FALSE | G77: =Cout*0.001*Rlstart*(Ilimit_final/Icharge -1+LN(Icharge/(Ilimit_final-Vcc_max/Rlstart))) -> 6.98661798
B78: Tchg_dVdT | C78: Charging time set | D78: =IF(D77, G77, IF(Cdvdt_ext="OPEN",D69,((Cdvdt_ext*Vcc_max)/(I_dVdt*Gain_dVdt)))) -> 5.95802302 | E78: ms | F78: =SQRT(F75^2+F66^2+F67^2) -> 0.1473634962
B79: Pd_Cout_startup | C79: Power dissipation due to load cap at start-up | D79: =0.5*Vcc_max*Icharge -> 1.208454545 | E79: W
B81: Total Power dissipation at Start-up
B82: Pd_Rlstart | C82: Power dissipation due to load resistance at start-up | D82: =(1/6)*(Vcc_max^2)/Rlstart -> 1.2 | E82: W | L82: Two layer
B83: Pd_startup | C83: Total power dissipation at start-up | D83: =D79+D82 -> 2.408454545 | E83: W
C84: Max power dissipation allowed for glitch-free startup for the programmed startup time (20% margin) | D84: =IF(D23>85,M84,IF(D23>25,M85,M86)) -> 7.07152 | E84: W | F84: 0.15 | L84: 125 | M84: =INDEX('Thermal Shutdown Limit Plot'!G11:H30,MATCH(Tchg_dvdt*(1+F78),'Thermal Shutdown Limit Plot'!H11:H30,-1),1)*0.8 -> 3.807504
B85: Will the system have glitch-free startup? Look at Thermal Shutdown Limit Plot Tab | D85: =IF(D83<(D84),"YES","NO, Increase Rlstart and/or Tchg_req; and/or Reduce Cout") -> YES | L85: 85 | M85: =INDEX('Thermal Shutdown Limit Plot'!E11:F35,MATCH(Tchg_dvdt*(1+F78),'Thermal Shutdown Limit Plot'!F11:F35,-1),1)*0.8 -> 7.07152
L86: 25 | M86: =INDEX('Thermal Shutdown Limit Plot'!C11:D37,MATCH(Tchg_dvdt*(1+F78),'Thermal Shutdown Limit Plot'!D11:D37,-1),1)*0.8 -> 10.067632
B87: Steady state Voltage drop & Power dissipation | L87: Single layer
B88: Parameter | C88: Description | D88: Value | E88: Units | F88: Tolerance | L88: 125 | M88: =INDEX('Thermal Shutdown Limit Plot'!G48:H72,MATCH(Tchg_dvdt*(1+F78),'Thermal Shutdown Limit Plot'!H48:H72,-1),1)*0.8 -> 4.64421024
B89: Vdrop | C89: Maximum voltage drop across device @ 25 degC | D89: =Imax*Rdson_25deg -> 92.6 | E89: mV | L89: 85 | M89: =INDEX('Thermal Shutdown Limit Plot'!E48:F70,MATCH(Tchg_dvdt*(1+F78),'Thermal Shutdown Limit Plot'!F48:F70,-1),1)*0.8 -> 6.31605
B90: Pdiss_Imax | C90: Steady state power dissipation with Max current @ 25degC | D90: =Imax^2*Rdson_25deg -> 92.6 | E90: mW | L90: 25 | M90: =INDEX('Thermal Shutdown Limit Plot'!C48:D74,MATCH(Tchg_dvdt*(1+F78),'Thermal Shutdown Limit Plot'!D48:D74,-1),1)*0.8 -> 10.7830472
B94: Parameters internal to Device
B95: Internal FET Parameters
B96: Parameter | C96: Description | D96: Value | E96: Units | F96: Tolerance
B97: VDSS (max) | C97: FET drain-source voltage rating (maximum) | D97: 21 | E97: V
B98: ID(max) | C98: FET drain-source current rating (maximum) | D98: 2 | E98: A
B99: Rds(on) | C99: FET maximum Rds(on) at 25degC | D99: 92.6 | E99: mOhm
B100: Rds(on)_max | C100: FET maximum Rds(on) at 125degC | D100: 131 | E100: mOhm
B101: Thermal Parameters
B102: Tj(max) | C102: Deice maximum junction temperature | D102: 150 | E102: C
B103: TA(max) | C103: Maximum ambient temperature of the application | D103: 125 | E103: C
B104: RJA | C104: Junction to ambient thermal resistance | D104: 52.7 | E104: C/W
B105: Internal References
B106: UVref | C106: Internal Undervoltage reference (Falling) | D106: 1.1 | E106: V | F106: 0.063
B107: OVref | C107: Internal Overvoltage reference (Rising) | D107: 1.2 | E107: V | F107: 0.03
B108: GainIMON | C108: Current monitor gain | D108: 655.6 | E108: uA/A | F108: 0.037

Sheet Thermal Shutdown Limit Plot
B2: Pd (W) | C2: Tstart (ms)
B3: ='Calculation Sheet'!D83 -> 2.408454545 | C3: =Tchg_dvdt -> 5.95802302
A8: Thermal Shutdown Time (ms) Vs. Power Dissipation (W) | K8: Title of Graph | M8: Thermal Shutdown Time Vs. Power Dissipation
A9: -40 degC | C9: 25 degC | E9: 85 degC | G9: 125 degC
A10: PD(W) | B10: Time(ms) | C10: PD(W) | D10: Time(ms) | E10: PD(W) | F10: Time(ms) | G10: PD(W) | H10: Time(ms) | K10: Label | L10: X-Axis | M10: Power Dissipation (W)
A11: 4.6677672 | B11: 15610 | C11: 3.3083904 | D11: 14720 | E11: 1.931697 | F11: 13390 | G11: 0.9803589 | H11: 12240 | L11: Y-Axis | M11: Thermal Shutdown time (ms)
A12: 4.84484 | B12: 11100 | C12: 3.4777305 | D12: 10400 | E12: 2.0282184 | F12: 12320 | G12: 1.0744272 | H12: 9459
A13: 5.12967 | B13: 7707 | C13: 3.6426455 | D13: 8109 | E13: 2.1172004 | F13: 7698 | G13: 1.39248 | H13: 6395
A14: 5.2304864 | B14: 6703 | C14: 4.008 | D14: 4688 | E14: 2.2043175 | F14: 5925 | G14: 1.4789298 | H14: 3656
A15: 5.6380619 | B15: 4820 | C15: 4.2149956 | D15: 4308 | E15: 2.595428 | F15: 4705 | G15: 1.593616 | H15: 2885
A16: 6.10742 | B16: 4406 | C16: 4.52956 | D16: 3159 | E16: 2.784465 | F16: 3955 | G16: 1.613016 | H16: 1736
A17: 6.47088 | B17: 3588 | C17: 5.293542 | D17: 2386 | E17: 2.810102 | F17: 3440 | G17: 1.661306 | H17: 1575
A18: 6.661628 | B18: 3022 | C18: 5.4132 | D18: 1901 | E18: 3.008124 | F18: 2701 | G18: 1.7863023 | H18: 1023
A19: 7.037257 | B19: 2052 | C19: 5.541356 | D19: 1811 | E19: 3.020535 | F19: 2447 | G19: 1.9034899 | H19: 782.4
A20: 7.223552 | B20: 1878 | C20: 5.720923 | D20: 1531 | E20: 3.154956 | F20: 1999 | G20: 2.05971 | H20: 616
A21: 7.610851 | B21: 1362 | C21: 5.814459 | D21: 1351 | E21: 3.36592 | F21: 1573 | G21: 2.231055 | H21: 352.7
A22: 8.033485 | B22: 1073 | C22: 5.861752 | D22: 1314 | E22: 3.402422 | F22: 1443 | G22: 2.62676 | H22: 241.5
A23: 8.468757 | B23: 682.7 | C23: 6.06837 | D23: 1015 | E23: 3.813725 | F23: 954.4 | G23: 3.000413 | H23: 117.7
A24: 8.846375 | B24: 627 | C24: 6.27708 | D24: 699.9 | E24: 4.1538 | F24: 717.2 | G24: 3.091452 | H24: 85.61
A25: 9.26279 | B25: 487.8 | C25: 6.624324 | D25: 567.4 | E25: 4.630455 | F25: 416.1 | G25: 3.384315 | H25: 63.86
A26: 9.671494 | B26: 373.4 | C26: 7.03596 | D26: 393.7 | E26: 5.005812 | F26: 287.1 | G26: 3.57975 | H26: 49.5
A27: 10.109862 | B27: 294.8 | C27: 7.461531 | D27: 284.1 | E27: 5.396715 | F27: 182.5 | G27: 3.612645 | H27: 36.83
A28: 10.492485 | B28: 231.3 | C28: 7.8617 | D28: 204.3 | E28: 5.63667 | F28: 113.4 | G28: 3.85839 | H28: 29.79
A29: 10.87264 | B29: 160.5 | C29: 8.306856 | D29: 137 | E29: 5.98689 | F29: 70.94 | G29: 4.193145 | H29: 24.8
A30: 11.276704 | B30: 137.6 | C30: 8.762825 | D30: 103.6 | E30: 6.342756 | F30: 45.38 | G30: 4.75938 | H30: 16.08
A31: 11.63392 | B31: 107.1 | C31: 9.148043 | D31: 69.18 | E31: 6.83055 | F31: 30.44
A32: 11.94505 | B32: 80.27 | C32: 9.502605 | D32: 42.12 | E32: 7.238835 | F32: 18.47
A33: 12.931856 | B33: 21.37 | C33: 9.97517 | D33: 25.2 | E33: 8.00703 | F33: 12.7
A34: 14.02908 | B34: 14.93 | C34: 10.426212 | D34: 18.7 | E34: 8.8394 | F34: 7.967
A35: 14.914695 | B35: 12.43 | C35: 11.5087 | D35: 12.24 | E35: 10.00705 | F35: 5.579
A36: 16.083785 | B36: 9.931 | C36: 12.58454 | D36: 9.612
A37: 16.928345 | B37: 8.598 | C37: 14.5837 | D37: 6.348
A45: Thermal Shutdown Time (ms) Vs. Power Dissipation (W) | K45: Title of Graph | M45: Thermal Shutdown Time Vs. Power Dissipation
A46: -40 degC | C46: 25 degC | E46: 85 degC | G46: 125 degC
A47: PD(W) | B47: Time(ms) | C47: PD(W) | D47: Time(ms) | E47: PD(W) | F47: Time(ms) | G47: PD(W) | H47: Time(ms) | K47: Label | L47: X-Axis | M47: Power Dissipation (W)
A48: 4.4367456 | B48: 10220 | C48: 3.012723 | D48: 12550 | E48: 1.6567192 | F48: 12250 | G48: 0.97611999 | H48: 14270 | L48: Y-Axis | M48: Thermal Shutdown time (ms)
A49: 4.8383284 | B49: 6271 | C49: 3.1977792 | D49: 8571 | E49: 1.9570227 | F49: 6781 | G49: 1.15639 | H49: 5134
A50: 5.0795796 | B50: 5204 | C50: 3.3909884 | D50: 6326 | E50: 2.1441411 | F50: 4497 | G50: 1.3497736 | H50: 2754
A51: 5.3401159 | B51: 3950 | C51: 3.49866 | D51: 5837 | E51: 2.444288 | F51: 2770 | G51: 1.452135 | H51: 2160
A52: 5.57766 | B52: 3345 | C52: 3.68478 | D52: 4502 | E52: 2.6650624 | F52: 2009 | G52: 1.5454332 | H52: 1665
A53: 5.853696 | B53: 2739 | C53: 3.866208 | D53: 3797 | E53: 2.973715 | F53: 1491 | G53: 1.648635 | H53: 1367
A54: 6.14988 | B54: 2244 | C54: 4.1831832 | D54: 2905 | E54: 3.202235 | F54: 1204 | G54: 1.778325 | H54: 1098
A55: 6.4918947 | B55: 1841 | C55: 4.4606718 | D55: 2289 | E55: 3.47311 | F55: 966.9 | G55: 1.8389562 | H55: 884.8
A56: 6.86862 | B56: 1446 | C56: 4.6364832 | D56: 2062 | E56: 3.669125 | F56: 779.8 | G56: 1.9777725 | H56: 733.5
A57: 7.347135 | B57: 1263 | C57: 4.8787314 | D57: 1568 | E57: 3.9422411 | F57: 588.5 | G57: 2.0649962 | H57: 617.8
A58: 7.978908 | B58: 850.1 | C58: 5.078528 | D58: 1367 | E58: 4.149805 | F58: 500.9 | G58: 2.1860625 | H58: 504.9
A59: 8.359601 | B59: 703.1 | C59: 5.3720238 | D59: 1070 | E59: 4.4162782 | F59: 395.4 | G59: 2.25792 | H59: 423.1
A60: 8.887488 | B60: 507.4 | C60: 5.5653324 | D60: 909 | E60: 4.60192 | F60: 331.9 | G60: 2.3589825 | H60: 362.5
A61: 9.237586 | B61: 405.6 | C61: 5.8613802 | D61: 722.5 | E61: 4.886585 | F61: 240.2 | G61: 2.4408175 | H61: 302.3
A62: 9.72786 | B62: 296.2 | C62: 6.06584 | D62: 646.4 | E62: 5.0350884 | F62: 191 | G62: 2.676245 | H62: 226.1
A63: 10.18705 | B63: 234.5 | C63: 6.3667641 | D63: 517.2 | E63: 5.3552125 | F63: 141.1 | G63: 2.9654886 | H63: 150
A64: 10.73215 | B64: 179.5 | C64: 6.5465452 | D64: 452 | E64: 5.5645625 | F64: 114.7 | G64: 3.1980567 | H64: 116.6
A65: 11.16005 | B65: 149.7 | C65: 6.8925948 | D65: 371.1 | E65: 5.8556736 | F65: 83.57 | G65: 3.47998 | H65: 81.76
A66: 11.73935 | B66: 113 | C66: 6.893764 | D66: 416.9 | E66: 6.2304571 | F66: 68.45 | G66: 3.670062 | H66: 65.91
A67: 12.100409 | B67: 94.19 | C67: 7.289145 | D67: 317.5 | E67: 6.3407375 | F67: 51.5 | G67: 3.9801528 | H67: 47.85
A68: 12.70059 | B68: 72.34 | C68: 7.86384 | D68: 209.2 | E68: 6.8780928 | F68: 31.81 | G68: 4.1687475 | H68: 39.37
A69: 13.185559 | B69: 60.27 | C69: 8.232491 | D69: 161.6 | E69: 7.8950625 | F69: 14.17 | G69: 4.4374386 | H69: 30.12
A70: 13.743918 | B70: 46.93 | C70: 8.713964 | D70: 108.8 | E70: 10.026432 | F70: 5.922 | G70: 4.877061 | H70: 19.69
A71: 14.74545 | B71: 37.35 | C71: 9.120228 | D71: 84.24 | G71: 5.3843374 | H71: 11.66
A72: 15.70878 | B72: 26.15 | C72: 9.73443 | D72: 59.31 | G72: 5.8052628 | H72: 8.352
A73: 17.77728 | B73: 14.53 | C73: 10.082848 | D73: 47.06
A74: 19.7784 | B74: 9.622 | C74: 13.478809 | D74: 9.963

Sheet Res EIA Tables
A1: Standard EIA Decade Resistor Values
A3: 0.2 | B3: 0.1 | C3: 0.05 | D3: 0.02 | E3: 0.01 | F3: 0.5%, 0.25%, 0.1%
A4: E6 | B4: E12 | C4: E24 | D4: E48 | E4: E96 | F4: E192
A5: 100 | B5: 100 | C5: 100 | D5: 100 | E5: 100 | F5: 100
F6: 101
E7: 102 | F7: 102
F8: 104
D9: 105 | E9: 105 | F9: 105
F10: 106
E11: 107 | F11: 107
F12: 109
C13: 110 | D13: 110 | E13: 110 | F13: 110
F14: 111
E15: 113 | F15: 113
F16: 114
D17: 115 | E17: 115 | F17: 115
F18: 117
E19: 118 | F19: 118
F20: 120
B21: 120 | C21: 120 | D21: 121 | E21: 121 | F21: 121
F22: 123
E23: 124 | F23: 124
F24: 126
D25: 127 | E25: 127 | F25: 127
F26: 129
E27: 130 | F27: 130
F28: 132
C29: 130 | D29: 133 | E29: 133 | F29: 133
F30: 135
E31: 137 | F31: 137
F32: 138
D33: 140 | E33: 140 | F33: 140
F34: 142
E35: 143 | F35: 143
F36: 145
A37: 150 | B37: 150 | C37: 150 | D37: 147 | E37: 147 | F37: 147
F38: 149
E39: 150 | F39: 150
F40: 152
D41: 154 | E41: 154 | F41: 154
F42: 156
E43: 158 | F43: 158
F44: 160
C45: 160 | D45: 162 | E45: 162 | F45: 162
F46: 164
E47: 165 | F47: 165
F48: 167
D49: 169 | E49: 169 | F49: 169
F50: 172
E51: 174 | F51: 174
F52: 176
B53: 180 | C53: 180 | D53: 178 | E53: 178 | F53: 178
F54: 180
E55: 182 | F55: 182
F56: 184
D57: 187 | E57: 187 | F57: 187
F58: 189
E59: 191 | F59: 191
F60: 193
C61: 200 | D61: 196 | E61: 196 | F61: 196
F62: 198
E63: 200 | F63: 200
F64: 203
D65: 205 | E65: 205 | F65: 205
F66: 208
E67: 210 | F67: 210
F68: 213
A69: 220 | B69: 220 | C69: 220 | D69: 215 | E69: 215 | F69: 215
F70: 218
E71: 221 | F71: 221
F72: 223
D73: 226 | E73: 226 | F73: 226
F74: 229
E75: 232 | F75: 232
F76: 234
C77: 240 | D77: 237 | E77: 237 | F77: 237
F78: 240
E79: 243 | F79: 243
F80: 246
D81: 249 | E81: 249 | F81: 249
F82: 252
E83: 255 | F83: 255
F84: 258
B85: 270 | C85: 270 | D85: 261 | E85: 261 | F85: 261
F86: 264
E87: 267 | F87: 267
F88: 271
D89: 274 | E89: 274 | F89: 274
F90: 277
E91: 280 | F91: 280
F92: 284
C93: 300 | D93: 287 | E93: 287 | F93: 287
F94: 291
E95: 294 | F95: 294
F96: 298
D97: 301 | E97: 301 | F97: 301
F98: 305
E99: 309 | F99: 309
F100: 312
A101: 330 | B101: 330 | C101: 330 | D101: 316 | E101: 316 | F101: 316
F102: 320
E103: 324 | F103: 324
F104: 328
D105: 332 | E105: 332 | F105: 332
F106: 336
E107: 340 | F107: 340
F108: 344
C109: 360 | D109: 348 | E109: 348 | F109: 348
F110: 352
E111: 357 | F111: 357
F112: 361
D113: 365 | E113: 365 | F113: 365
F114: 370
E115: 374 | F115: 374
F116: 379
B117: 390 | C117: 390 | D117: 383 | E117: 383 | F117: 383
F118: 388
E119: 392 | F119: 392
F120: 397
D121: 402 | E121: 402 | F121: 402
F122: 407
E123: 412 | F123: 412
F124: 417
C125: 430 | D125: 422 | E125: 422 | F125: 422
F126: 427
E127: 432 | F127: 432
F128: 437
D129: 442 | E129: 442 | F129: 442
F130: 448
E131: 453 | F131: 453
F132: 459
A133: 470 | B133: 470 | C133: 470 | D133: 464 | E133: 464 | F133: 464
F134: 470
E135: 475 | F135: 475
F136: 481
D137: 487 | E137: 487 | F137: 487
F138: 493
E139: 499 | F139: 499
F140: 505
C141: 510 | D141: 511 | E141: 511 | F141: 511
F142: 517
E143: 523 | F143: 523
F144: 530
D145: 536 | E145: 536 | F145: 536
F146: 542
E147: 549 | F147: 549
F148: 556
B149: 560 | C149: 560 | D149: 562 | E149: 562 | F149: 562
F150: 569
E151: 576 | F151: 576
F152: 583
D153: 590 | E153: 590 | F153: 590
F154: 597
E155: 604 | F155: 604
F156: 612
C157: 620 | D157: 619 | E157: 619 | F157: 619
F158: 626
E159: 634 | F159: 634
F160: 642
D161: 649 | E161: 649 | F161: 649
F162: 657
E163: 665 | F163: 665
F164: 673
A165: 680 | B165: 680 | C165: 680 | D165: 681 | E165: 681 | F165: 681
F166: 690
E167: 698 | F167: 698
F168: 706
D169: 715 | E169: 715 | F169: 715
F170: 723
E171: 732 | F171: 732
F172: 741
C173: 750 | D173: 750 | E173: 750 | F173: 750
F174: 759
E175: 768 | F175: 768
F176: 777
D177: 787 | E177: 787 | F177: 787
F178: 796
E179: 806 | F179: 806
F180: 816
B181: 820 | C181: 820 | D181: 825 | E181: 825 | F181: 825
F182: 835
E183: 845 | F183: 845
F184: 856
D185: 866 | E185: 866 | F185: 866
F186: 876
E187: 887 | F187: 887
F188: 898
C189: 910 | D189: 909 | E189: 909 | F189: 909
F190: 920
E191: 931 | F191: 931
F192: 942
D193: 953 | E193: 953 | F193: 953
F194: 965
E195: 976 | F195: 976
F196: 988
A197: 1000 | B197: 1000 | C197: 1000 | D197: 1000 | E197: 1000 | F197: 1000 | G197: End Values Required for Processing

Sheet Cap Tables
A1: Standard Capacitor Values
A3: pF | B3: nF | C3: µF | D3: mF
A4: 1 | B4: 1 | C4: 1 | D4: 1
A5: 1.1 | B5: 1.1
A6: 1.2 | B6: 1.2
A7: 1.3 | B7: 1.3
A8: 1.5 | B8: 1.5 | C8: 1.5 | D8: 1.5
A9: 1.6 | B9: 1.6
A10: 1.8 | B10: 1.8
A11: 2 | B11: 2
A12: 2.2 | B12: 2.2 | C12: 2.2 | D12: 2.2
A13: 2.4 | B13: 2.4
A14: 2.7 | B14: 2.7
A15: 3 | B15: 3
A16: 3.3 | B16: 3.3 | C16: 3.3 | D16: 3.3
A17: 3.6 | B17: 3.6 | C17: =C18 -> 4.7
A18: 3.9 | B18: 3.9 | C18: =C19 -> 4.7
A19: 4.3 | B19: 4.3 | C19: =C20 -> 4.7
A20: 4.7 | B20: 4.7 | C20: 4.7 | D20: 4.7
A21: 5.1 | B21: 5.1 | C21: =C22 -> 6.8
A22: 5.6 | B22: 5.6 | C22: =C23 -> 6.8
A23: 6.2 | B23: 6.2 | C23: =C24 -> 6.8
A24: 6.8 | B24: 6.8 | C24: 6.8 | D24: 6.8
A25: 7.5 | B25: 7.5 | C25: =C26 -> 10
A26: 8.2 | B26: 8.2 | C26: =C27 -> 10
A27: 9.1 | B27: 9.1 | C27: =C28 -> 10
A28: 10 | B28: 10 | C28: 10 | D28: 10
A29: 11 | B29: =B30 -> 15 | C29: 15
A30: 12 | B30: 15 | C30: 15
A31: 13 | B31: 15 | C31: 15
A32: 15 | B32: 15 | C32: 15
A33: 16 | B33: =B34 -> 22 | C33: 22
A34: 18 | B34: 22 | C34: 22
A35: 20 | B35: 22 | C35: 22
A36: 22 | B36: 22 | C36: 22
A37: 24 | B37: =B38 -> 33 | C37: 33
A38: 27 | B38: 33 | C38: 33
A39: 30 | B39: 33 | C39: 33
A40: 33 | B40: 33 | C40: 33
A41: 36 | B41: =B42 -> 47 | C41: 47
A42: 39 | B42: 47 | C42: 47
A43: 43 | B43: 47 | C43: 47
A44: 47 | B44: 47 | C44: 47
A45: 51 | B45: =B46 -> 68 | C45: 68
A46: 56 | B46: 68 | C46: 68
A47: 62 | B47: 68 | C47: 68
A48: 68 | B48: 68 | C48: 68
A49: 75 | B49: =B50 -> 100 | C49: 100
A50: 82 | B50: 100 | C50: 100
A51: 91 | B51: 100 | C51: 100
A52: 100 | B52: 100 | C52: 100
A53: 110 | B53: =B54 -> 150 | C53: 150
A54: 120 | B54: 150 | C54: 150
A55: 130 | B55: 150 | C55: 150
A56: 150 | B56: 150 | C56: 150
A57: 160 | B57: =B58 -> 220 | C57: 220
A58: 180 | B58: 220 | C58: 220
A59: 200 | B59: 220 | C59: 220
A60: 220 | B60: 220 | C60: 220
A61: 240 | B61: =B62 -> 330 | C61: 330
A62: 270 | B62: 330 | C62: 330
A63: 300 | B63: 330 | C63: 330
A64: 330 | B64: 330 | C64: 330
A65: 360 | B65: =B66 -> 470 | C65: 470
A66: 390 | B66: 470 | C66: 470
A67: 430 | B67: 470 | C67: 470
A68: 470 | B68: 470 | C68: 470
A69: 510 | B69: =B70 -> 680 | C69: 680
A70: 560 | B70: 680 | C70: 680
A71: 620 | B71: 680 | C71: 680
A72: 680 | B72: 680 | C72: 680
A73: 750 | B73: =B74 -> 1000 | C73: =C74 -> 1000
A74: 820 | B74: =B75 -> 1000 | C74: =C75 -> 1000
A75: 910 | B75: 1000 | C75: 1000
